bitfinex/quotes_BTCUSD_20240828
["timestamp","ask_amount","ask_price","bid_price","bid_amount"]
[1724834009442,1.72409998,59252.0,59251.0,0.2631987]
[1724834009664,1.89265162,59252.0,59251.0,0.2631987]
[1724834009876,1.38655898,59252.0,59251.0,0.2631987]
[1724834010348,0.54270698,59252.0,59251.0,0.2631987]
[1724834010578,0.71147698,59252.0,59251.0,0.3450987]
[1724834012249,1.04901798,59252.0,59251.0,0.3450987]
[1724834014434,1.04901798,59252.0,59251.0,0.2631987]
[1724834015734,1.53353328,59252.0,59251.0,0.2631987]
[1724834016163,1.87107428,59252.0,59251.0,0.2008987]
[1724834016436,1.72409998,59252.0,59251.0,0.2008987]
[1724834018642,2.06664098,59252.0,59251.0,0.2008987]
[1724834019532,2.14664098,59252.0,59251.0,0.2008987]
[1724834020861,1.38655898,59252.0,59251.0,0.2663987]
[1724834021532,1.04901798,59252.0,59251.0,0.2663987]
[1724834021944,1.38655898,59252.0,59251.0,0.2663987]
[1724834022142,1.38655898,59252.0,59251.0,0.2008987]
[1724834022397,1.55511062,59252.0,59251.0,0.2008987]
[1724834022600,1.55511062,59252.0,59251.0,0.19966223]
[1724834022831,1.89765162,59252.0,59251.0,0.19966223]
[1724834023050,1.94814257,59252.0,59251.0,0.19966223]
[1724834024514,2.28566981,59252.0,59251.0,0.19966223]
[1724834024723,2.23519262,59252.0,59251.0,0.19966223]
[1724834024928,2.31429262,59252.0,59251.0,0.19966223]
[1724834025106,2.39000841,59252.0,59251.0,0.19966223]
[1724834025486,2.41300841,59252.0,59251.0,0.19966223]
[1724834025697,2.33729262,59252.0,59251.0,0.19966223]
[1724834027090,2.34229262,59252.0,59251.0,0.19966223]
[1724834027355,2.44328507,59252.0,59251.0,0.19966223]
[1724834027730,1.91419243,59252.0,59251.0,0.19966223]
[1724834028103,1.92219243,59252.0,59251.0,0.19966223]
[1724834029537,2.25973343,59252.0,59251.0,0.19966223]
[1724834029961,2.21900468,59252.0,59251.0,0.19966223]
[1724834030178,2.64254568,59252.0,59251.0,0.19966223]
[1724834030413,2.81109732,59252.0,59251.0,0.19966223]
[1724834030627,2.91109732,59252.0,59251.0,0.19966223]
[1724834031047,2.81010487,59252.0,59251.0,0.19966223]
[1724834031500,2.83181684,59252.0,59251.0,0.19966223]
[1724834032595,2.9580574,59252.0,59251.0,0.19966223]
[1724834032824,2.82370526,59252.0,59251.0,0.19966223]
[1724834033040,2.38499756,59252.0,59251.0,0.19966223]
[1724834033232,2.15874098,59252.0,59251.0,0.19966223]
[1724834033428,1.5005698,59252.0,59251.0,0.19966223]
[1724834033634,1.39955898,59252.0,59251.0,0.19966223]
[1724834034085,1.73709998,59252.0,59251.0,0.19966223]
[1724834034494,1.80736181,59252.0,59251.0,0.19966223]
[1724834035526,1.77859998,59252.0,59251.0,0.19966223]
[1724834036326,1.85435805,59252.0,59251.0,0.19966223]
[1724834036553,1.9026108,59252.0,59251.0,0.19966223]
[1724834036761,2.13914098,59252.0,59251.0,0.19966223]
[1724834036968,2.36539756,59252.0,59251.0,0.19966223]
[1724834037171,2.35364953,59252.0,59251.0,0.19966223]
[1724834037589,2.23914098,59252.0,59251.0,0.19966223]
[1724834038929,1.79909998,59252.0,59251.0,0.19966223]
[1724834039171,1.92555368,59252.0,59251.0,0.19966223]
[1724834039402,1.79909998,59252.0,59251.0,0.19966223]
[1724834040722,2.28344098,59252.0,59251.0,0.19966223]
[1724834040968,2.77180487,59252.0,59251.0,0.19966223]
[1724834041202,1.88149998,59252.0,59251.0,0.19966223]
[1724834041427,1.69909998,59252.0,59251.0,0.19966223]
[1724834043231,2.81319423,59252.0,59251.0,0.19966223]
[1724834043460,2.49865323,59252.0,59251.0,0.19966223]
[1724834043688,2.66720487,59252.0,59251.0,0.19966223]
[1724834043919,1.77849998,59252.0,59251.0,0.19966223]
[1724834044144,1.48317765,59252.0,59251.0,0.19966223]
[1724834044402,1.48321604,59252.0,59251.0,0.19966223]
[1724834044625,1.82075704,59252.0,59251.0,0.19966223]
[1724834044846,1.82157504,59252.0,59251.0,0.19966223]
[1724834045529,1.69491798,59252.0,59251.0,0.19966223]
[1724834046181,2.31555196,59252.0,59251.0,0.19966223]
[1724834046633,2.33855196,59252.0,59251.0,0.19966223]
[1724834047111,2.20275898,59252.0,59251.0,0.19966223]
[1724834047345,2.13935898,59252.0,59251.0,0.19966223]
[1724834048019,2.13935898,59252.0,59251.0,0.19942823]
[1724834048715,2.71121714,59252.0,59251.0,0.19942823]
[1724834048937,2.64019998,59252.0,59251.0,0.19942823]
[1724834049156,2.80875162,59252.0,59251.0,0.19942823]
[1724834050046,2.80875162,59252.0,59240.0,0.008998]
[1724834050047,1.999922,59241.0,59240.0,0.008998]
[1724834050269,2.75963425,59241.0,59240.0,0.008998]
[1724834050495,2.86992517,59241.0,59240.0,0.008998]
[1724834050786,2.72387281,59241.0,59240.0,0.008998]
[1724834051011,1.68128306,59241.0,59240.0,0.008998]
[1724834051682,2.16198706,59241.0,59240.0,0.008998]
[1724834051906,1.68128306,59241.0,59240.0,0.008998]
[1724834052127,1.7825656,59241.0,59240.0,0.008998]
[1724834052353,1.69528306,59241.0,59240.0,0.008998]
[1724834052569,1.79655742,59241.0,59240.0,0.008998]
[1724834053006,1.78422856,59241.0,59240.0,0.008998]
[1724834053238,1.43262456,59241.0,59240.0,0.072798]
[1724834053468,1.39430623,59241.0,59240.0,0.072798]
[1724834053923,1.40030623,59241.0,59240.0,0.072798]
[1724834054143,1.40030623,59241.0,59240.0,0.155098]
[1724834054360,1.34967906,59241.0,59240.0,0.155098]
[1724834054616,1.35967906,59241.0,59240.0,0.155098]
[1724834055462,0.67447106,59241.0,59240.0,0.155098]
[1724834055913,0.66847106,59241.0,59240.0,0.155098]
[1724834056130,0.99817506,59241.0,59240.0,0.155098]
[1724834056347,0.66057106,59241.0,59240.0,0.155098]
[1724834056778,0.66057106,59241.0,59240.0,0.156098]
[1724834056999,0.99817506,59241.0,59240.0,0.156098]
[1724834057666,0.66847106,59241.0,59240.0,0.156098]
[1724834058348,0.49966906,59241.0,59240.0,0.156098]
[1724834058616,0.49966906,59241.0,59240.0,0.324902]
[1724834059265,0.47319092,59241.0,59240.0,0.324902]
[1724834059486,0.49966144,59241.0,59240.0,0.323902]
[1724834059713,0.50166144,59241.0,59240.0,0.662511]
[1724834059936,0.50166144,59241.0,59240.0,1.00012]
[1724834061739,0.50166144,59241.0,59240.0,1.337729]
[1724834061962,0.50166144,59241.0,59240.0,1.775338]
[1724834062212,0.40769092,59241.0,59240.0,1.775338]
[1724834062442,0.27269092,59241.0,59240.0,1.734538]
[1724834062662,0.2332,59241.0,59240.0,1.734538]
[1724834062875,0.2322,59241.0,59240.0,1.733538]
[1724834063087,0.2322,59241.0,59240.0,1.75536811]
[1724834063321,0.2332,59241.0,59240.0,1.75936811]
[1724834063540,0.2322,59241.0,59240.0,1.75936811]
[1724834063769,0.25766497,59241.0,59240.0,1.75536811]
[1724834064193,0.25866497,59241.0,59240.0,1.75936811]
[1724834064634,0.2322,59241.0,59240.0,1.75936811]
[1724834065107,0.2332,59241.0,59240.0,1.76436811]
[1724834065335,0.2322,59241.0,59240.0,2.10197711]
[1724834065568,0.2332,59241.0,59240.0,2.11297711]
[1724834065795,0.2322,59241.0,59240.0,2.10897711]
[1724834066026,0.2312,59241.0,59240.0,2.09797711]
[1724834066269,0.2332,59241.0,59240.0,1.78536811]
[1724834066529,0.2322,59241.0,59240.0,1.77436811]
[1724834066767,0.2312,59241.0,59240.0,1.76036811]
[1724834066993,0.2322,59241.0,59240.0,1.77136811]
[1724834067229,0.2332,59241.0,59240.0,1.78536811]
[1724834068409,0.2322,59241.0,59240.0,1.77436811]
[1724834069097,0.233018,59241.0,59240.0,1.77436811]
[1724834069309,0.233018,59241.0,59240.0,1.76536811]
[1724834069541,0.233018,59241.0,59240.0,1.77036811]
[1724834069967,0.233018,59241.0,59240.0,1.76036811]
[1724834069968,0.232018,59241.0,59240.0,1.76036811]
[1724834070140,0.233018,59241.0,59240.0,1.76536811]
[1724834070344,0.234018,59241.0,59240.0,1.77536811]
[1724834071333,0.234018,59241.0,59240.0,2.11297711]
[1724834071581,0.234018,59241.0,59240.0,1.77536811]
[1724834073055,0.234018,59241.0,59240.0,2.11297711]
[1724834073259,0.234018,59241.0,59240.0,1.77536811]
[1724834073674,0.234018,59241.0,59240.0,2.11297711]
[1724834076059,0.02646566,59250.0,59249.0,1.856569]
[1724834076443,0.02646566,59250.0,59249.0,2.35558125]
[1724834076892,0.02646566,59250.0,59249.0,2.01802325]
[1724834077767,0.000818,59252.0,59251.0,1.518961]
[1724834078014,0.000818,59252.0,59251.0,1.700861]
[1724834079809,0.001818,59252.0,59251.0,1.707861]
[1724834080262,0.002818,59252.0,59251.0,1.719861]
[1724834080489,0.002818,59252.0,59251.0,1.742861]
[1724834080747,0.001818,59252.0,59251.0,2.068408]
[1724834080979,0.001818,59252.0,59251.0,2.073408]
[1724834081193,0.002818,59252.0,59251.0,2.085408]
[1724834081424,0.001818,59252.0,59251.0,2.078408]
[1724834081943,0.002818,59252.0,59251.0,2.085408]
[1724834083086,0.002818,59252.0,59251.0,0.960867]
[1724834083308,0.002818,59252.0,59251.0,1.298414]
[1724834083967,0.02928227,59252.0,59251.0,1.298414]
[1724834084885,0.02928227,59252.0,59251.0,0.960867]
[1724834085279,0.02928227,59252.0,59251.0,1.298414]
[1724834085494,0.02928227,59252.0,59251.0,0.960867]
[1724834086315,0.02928227,59252.0,59251.0,1.298414]
[1724834086523,0.02928227,59252.0,59251.0,0.960867]
[1724834087767,0.02928227,59252.0,59251.0,1.298414]
[1724834088324,0.002818,59252.0,59251.0,1.298414]
[1724834088713,0.02928217,59252.0,59251.0,1.298414]
[1724834089645,0.002818,59252.0,59251.0,1.298414]
[1724834089864,0.00159628,59252.0,59251.0,1.298414]
[1724834090073,0.00159628,59252.0,59251.0,1.321414]
[1724834091325,0.02805879,59252.0,59251.0,1.321414]
[1724834091718,0.02805879,59252.0,59251.0,1.403614]
[1724834094518,0.02805879,59252.0,59251.0,1.4045138]
[1724834094972,0.02887679,59252.0,59251.0,1.4045138]
[1724834100038,0.00241428,59252.0,59251.0,1.4045138]
[1724834100931,0.00241428,59252.0,59251.0,1.40405303]
[1724834101376,0.00241428,59252.0,59251.0,1.32185303]
[1724834102193,0.02887865,59252.0,59251.0,1.32185303]
[1724834104575,0.02887865,59252.0,59251.0,1.65940003]
[1724834104785,0.02887865,59252.0,59251.0,1.32185303]
[1724834105058,0.02887865,59252.0,59251.0,1.40265303]
[1724834105266,0.02887865,59252.0,59251.0,1.74520003]
[1724834106131,0.02728237,59252.0,59251.0,1.72620003]
[1724834106362,0.02828237,59252.0,59251.0,1.73320003]
[1724834106822,0.02928237,59252.0,59251.0,1.74520003]
[1724834107245,0.02828237,59252.0,59251.0,1.73320003]
[1724834107705,0.02828237,59252.0,59251.0,2.18232669]
[1724834108136,0.02728237,59252.0,59251.0,2.17532669]
[1724834108348,0.02728237,59252.0,59251.0,2.1007406]
[1724834108564,0.02728237,59252.0,59251.0,2.17570839]
[1724834108776,0.02728237,59252.0,59251.0,2.18970839]
[1724834109012,0.02728237,59252.0,59251.0,2.54125539]
[1724834109227,0.02728237,59252.0,59251.0,2.52725539]
[1724834109653,0.02728237,59252.0,59251.0,2.20369852]
[1724834109878,0.02728237,59252.0,59251.0,2.17569852]
[1724834110089,0.02728237,59252.0,59251.0,2.18969852]
[1724834110330,0.02728237,59252.0,59251.0,2.20369852]
[1724834110538,0.000818,59252.0,59251.0,2.20369852]
[1724834113001,0.000818,59252.0,59251.0,2.1287406]
[1724834113859,0.000818,59252.0,59251.0,1.8291578]
[1724834114301,0.000818,59252.0,59251.0,1.75420003]
[1724834114520,0.000818,59252.0,59251.0,2.20369744]
[1724834114949,0.02728011,59252.0,59251.0,2.12873962]
[1724834115157,0.02728011,59252.0,59251.0,2.1287334]
[1724834115366,0.02728011,59252.0,59251.0,2.20367576]
[1724834115616,0.02728011,59252.0,59251.0,1.82914239]
[1724834115837,0.02728011,59252.0,59251.0,1.75420003]
[1724834116057,0.02728011,59252.0,59251.0,1.75370003]
[1724834118452,0.02728011,59252.0,59251.0,1.82864239]
[1724834118672,0.000818,59252.0,59251.0,2.20317949]
[1724834118879,0.000818,59252.0,59251.0,1.82864239]
[1724834119786,0.000818,59252.0,59251.0,1.75370003]
[1724834120008,0.000818,59252.0,59251.0,1.82865208]
[1724834120232,0.000818,59252.0,59251.0,1.38032266]
[1724834120458,0.143718,59252.0,59251.0,1.33035303]
[1724834120677,0.143718,59252.0,59251.0,0.86980603]
[1724834121120,0.143718,59252.0,59251.0,1.20735303]
[1724834121545,0.17018214,59252.0,59251.0,1.20735303]
[1724834122188,0.17018214,59252.0,59251.0,1.19335303]
[1724834122387,0.17018214,59252.0,59251.0,1.20735303]
[1724834122596,0.17018214,59252.0,59251.0,1.29335303]
[1724834123019,0.17118214,59252.0,59251.0,1.30735303]
[1724834124945,0.17118214,59252.0,59251.0,0.96980603]
[1724834125566,0.17118214,59252.0,59251.0,1.30735303]
[1724834130309,0.02828214,59252.0,59251.0,1.33035303]
[1724834130515,0.02828214,59252.0,59251.0,1.66790003]
[1724834130999,0.001818,59252.0,59251.0,1.66790003]
[1724834131649,0.001818,59252.0,59251.0,2.060431]
[1724834131824,0.000818,59256.0,59255.0,0.592386]
[1724834132060,0.000818,59256.0,59255.0,1.44039237]
[1724834132269,0.000818,59256.0,59255.0,2.11544037]
[1724834133148,0.001818,59256.0,59255.0,2.14344037]
[1724834133876,0.000818,59256.0,59255.0,2.12943459]
[1724834134313,0.001818,59256.0,59255.0,2.14343459]
[1724834134530,0.001818,59256.0,59255.0,2.093482]
[1724834134758,0.001818,59256.0,59255.0,1.736958]
[1724834134976,0.001818,59256.0,59255.0,1.750958]
[1724834135185,0.001818,59256.0,59255.0,1.669858]
[1724834135186,0.079118,59256.0,59255.0,1.669858]
[1724834135400,0.143318,59256.0,59255.0,1.669858]
[1724834136054,0.143318,59256.0,59255.0,1.646858]
[1724834139203,0.14315453,59256.0,59255.0,1.309334]
[1724834139415,0.14315453,59256.0,59255.0,0.97181]
[1724834139627,0.14315453,59256.0,59255.0,1.309334]
[1724834140064,0.16961747,59256.0,59255.0,1.309334]
[1724834140471,0.16861747,59256.0,59255.0,1.295334]
[1724834141219,0.16861747,59256.0,59255.0,0.95781]
[1724834141464,0.16861747,59256.0,59255.0,0.94381]
[1724834141678,0.16861747,59256.0,59255.0,0.606286]
[1724834141905,0.16861747,59256.0,59255.0,0.95781]
[1724834142120,0.16861747,59256.0,59255.0,0.97181]
[1724834143032,0.16877,59252.0,59251.0,0.0008998]
[1724834143282,0.646211,59252.0,59251.0,0.0008998]
[1724834143503,0.99276244,59252.0,59251.0,0.0008998]
[1724834145158,0.99576244,59252.0,59251.0,0.0008998]
[1724834145416,0.15191044,59252.0,59251.0,0.0008998]
[1724834145655,0.15191044,59252.0,59251.0,0.5072198]
[1724834145656,0.14891044,59252.0,59251.0,0.5072198]
[1724834145885,0.15591044,59252.0,59251.0,0.8457668]
[1724834146108,0.1419,59252.0,59251.0,0.8447668]
[1724834146341,0.1439,59252.0,59251.0,0.5072198]
[1724834146821,0.15285911,59252.0,59251.0,0.5072198]
[1724834147047,0.15285911,59252.0,59251.0,0.8447668]
[1724834147298,0.14885911,59252.0,59251.0,1.1823138]
[1724834147503,0.1399,59252.0,59251.0,1.1823138]
[1724834147920,0.1409,59252.0,59251.0,1.1883138]
[1724834148153,0.001,59252.0,59251.0,1.2883138]
[1724834148374,0.02711747,59256.0,59255.0,1.181334]
[1724834148606,0.02711747,59256.0,59255.0,1.91467025]
[1724834148892,0.02711747,59256.0,59255.0,1.91367025]
[1724834149304,0.02711747,59256.0,59255.0,1.91267025]
[1724834149530,0.02811747,59256.0,59255.0,1.91267025]
[1724834149756,0.02911747,59256.0,59255.0,1.57514625]
[1724834150912,0.00265453,59256.0,59255.0,1.57514625]
[1724834152572,0.1401,59276.0,59275.0,1.180935]
[1724834153074,0.000817,59280.0,59267.0,0.73426725]
[1724834153075,0.02645774,59274.0,59273.0,0.506131]
[1724834153309,0.02645774,59274.0,59273.0,1.24036425]
[1724834153536,0.02645774,59274.0,59273.0,1.57778525]
[1724834155727,0.02645774,59274.0,59273.0,1.59178525]
[1724834156185,0.02645774,59274.0,59273.0,1.60578525]
[1724834157086,0.02645774,59274.0,59273.0,1.59178525]
[1724834157549,0.02645774,59274.0,59273.0,1.92920625]
[1724834157775,0.02645774,59274.0,59273.0,1.91520625]
[1724834158036,0.02645774,59274.0,59273.0,2.01760625]
[1724834158265,0.02645774,59274.0,59273.0,2.03160625]
[1724834158497,0.02645774,59274.0,59273.0,2.04560625]
[1724834159419,0.02645774,59274.0,59273.0,2.11240625]
[1724834159876,0.000817,59280.0,59279.0,1.518241]
[1724834160097,0.000817,59280.0,59279.0,1.93805325]
[1724834160321,0.000817,59280.0,59279.0,1.94305325]
[1724834161002,0.000817,59280.0,59279.0,2.36084025]
[1724834161504,0.000817,59280.0,59279.0,2.37484025]
[1724834162170,0.000817,59280.0,59279.0,2.36084025]
[1724834162408,0.000817,59280.0,59279.0,1.95205325]
[1724834163088,0.000817,59280.0,59279.0,1.96605325]
[1724834163371,0.000817,59280.0,59279.0,1.95205325]
[1724834163593,0.000817,59280.0,59279.0,1.96605325]
[1724834164741,0.000817,59280.0,59279.0,1.97105325]
[1724834165178,0.000817,59280.0,59279.0,1.96605325]
[1724834165824,0.000817,59280.0,59279.0,1.95205325]
[1724834166561,0.000817,59280.0,59279.0,1.96605325]
[1724834168000,0.000817,59280.0,59279.0,1.96601325]
[1724834169310,0.000817,59280.0,59279.0,1.62862625]
[1724834169725,0.079417,59280.0,59279.0,1.308814]
[1724834169938,0.145717,59280.0,59279.0,0.871427]
[1724834171428,0.145717,59280.0,59279.0,1.208814]
[1724834171634,0.145717,59280.0,59279.0,1.308814]
[1724834173796,0.000817,59280.0,59279.0,1.646201]
[1724834174018,0.000817,59280.0,59279.0,1.674201]
[1724834174223,0.000817,59280.0,59279.0,2.011588]
[1724834174457,0.000817,59280.0,59279.0,1.674201]
[1724834174859,0.000817,59280.0,59279.0,2.088288]
[1724834175467,0.02645031,59285.0,59279.0,2.088288]
[1724834175468,0.02645031,59285.0,59284.0,1.855474]
[1724834175719,0.02645031,59285.0,59284.0,2.28028625]
[1724834175938,0.02645031,59285.0,59284.0,2.42208625]
[1724834176142,0.02645031,59285.0,59284.0,2.45593625]
[1724834176351,0.000817,59295.0,59294.0,1.517859]
[1724834176557,0.000817,59295.0,59294.0,1.93767125]
[1724834177674,0.000817,59295.0,59294.0,1.95167125]
[1724834177880,0.02726242,59295.0,59294.0,1.95167125]
[1724834179126,0.02726242,59295.0,59294.0,2.35947325]
[1724834179333,0.000817,59295.0,59294.0,2.35947325]
[1724834179765,0.000817,59295.0,59294.0,2.34547325]
[1724834180106,0.000817,59295.0,59294.0,2.35947325]
[1724834180307,0.000817,59295.0,59294.0,2.37347325]
[1724834180507,0.000817,59295.0,59294.0,2.35947325]
[1724834180969,0.000817,59295.0,59294.0,2.37347325]
[1724834182016,0.000817,59295.0,59294.0,2.30797325]
[1724834183759,0.000817,59301.0,59300.0,2.15678625]
[1724834183972,0.02725557,59301.0,59300.0,1.645706]
[1724834184183,0.02725557,59301.0,59300.0,1.94251825]
[1724834185555,0.02725557,59301.0,59300.0,1.95651825]
[1724834186055,0.000817,59301.0,59300.0,1.95651825]
[1724834186784,0.000817,59301.0,59300.0,1.99230527]
[1724834187695,0.02725789,59301.0,59300.0,1.99230527]
[1724834188136,0.02725789,59301.0,59300.0,1.69549302]
[1724834188361,0.02725789,59301.0,59300.0,1.97830527]
[1724834188580,0.000817,59301.0,59300.0,1.97830527]
[1724834188804,0.02725822,59301.0,59300.0,2.12460527]
[1724834189024,0.02725822,59301.0,59300.0,2.13860527]
[1724834189523,0.02725822,59301.0,59300.0,2.12460527]
[1724834189834,0.02725822,59301.0,59300.0,2.06120527]
[1724834190087,0.02725822,59301.0,59300.0,2.07520527]
[1724834190310,0.02725822,59301.0,59300.0,1.97051825]
[1724834190569,0.0632,59309.0,59300.0,1.95651825]
[1724834190807,0.0632,59309.0,59307.0,0.168614]
[1724834191023,0.0632,59309.0,59307.0,1.28366993]
[1724834191269,0.0632,59309.0,59307.0,1.280298]
[1724834191511,0.46538,59308.0,59307.0,1.280298]
[1724834192659,0.46538,59308.0,59307.0,1.294298]
[1724834194039,0.46538,59308.0,59307.0,1.308298]
[1724834194287,0.38818,59308.0,59307.0,1.94233825]
[1724834194517,0.38818,59308.0,59307.0,1.96533825]
[1724834194771,0.38818,59308.0,59307.0,2.30756625]
[1724834195423,0.38818,59308.0,59307.0,2.29356625]
[1724834195637,0.38818,59308.0,59307.0,2.36719122]
[1724834196408,0.38818,59308.0,59307.0,2.7636327]
[1724834196671,0.03462061,59312.0,59311.0,0.005]
[1724834196888,5.3e-07,59315.0,59314.0,0.47040625]
[1724834197129,5.3e-07,59315.0,59314.0,1.57697025]
[1724834197353,5.3e-07,59315.0,59314.0,1.99164656]
[1724834197597,5.3e-07,59315.0,59314.0,1.94215825]
[1724834198552,5.3e-07,59315.0,59314.0,1.99164499]
[1724834198762,5.3e-07,59315.0,59314.0,1.94215825]
[1724834198955,5.3e-07,59315.0,59314.0,1.96418838]
[1724834199215,5.3e-07,59315.0,59314.0,2.32937638]
[1724834199451,5.3e-07,59315.0,59314.0,2.31537638]
[1724834199699,5.3e-07,59315.0,59314.0,1.97818838]
[1724834199990,5.3e-07,59315.0,59314.0,2.0416452]
[1724834200456,5.3e-07,59315.0,59314.0,1.99218838]
[1724834201832,5.3e-07,59315.0,59314.0,2.30637638]
[1724834202063,5.3e-07,59315.0,59314.0,2.29237638]
[1724834202311,5.3e-07,59315.0,59314.0,2.27837638]
[1724834202551,5.3e-07,59315.0,59314.0,2.30637638]
[1724834203028,0.0004,59319.0,59315.0,1.522319]
[1724834203245,0.0004,59319.0,59316.0,0.847942]
[1724834203246,9.6e-07,59317.0,59316.0,0.847942]
[1724834203496,9.6e-07,59317.0,59316.0,2.29665]
[1724834203742,9.6e-07,59317.0,59316.0,1.617296]
[1724834203973,9.6e-07,59317.0,59316.0,1.91410825]
[1724834204192,9.6e-07,59317.0,59316.0,2.25128525]
[1724834204417,9.6e-07,59317.0,59316.0,1.91410825]
[1724834204890,9.6e-07,59317.0,59316.0,2.25628525]
[1724834205377,9.6e-07,59317.0,59316.0,2.27028525]
[1724834205618,9.6e-07,59317.0,59316.0,2.34868525]
[1724834206315,9.6e-07,59317.0,59316.0,2.36268525]
[1724834206760,0.0004,59319.0,59318.0,1.522242]
[1724834207002,0.0004,59319.0,59318.0,1.622242]
[1724834207474,0.0004,59319.0,59318.0,1.959407]
[1724834208184,0.0004,59319.0,59318.0,1.954407]
[1724834209318,0.0004,59319.0,59318.0,1.968407]
[1724834209555,0.1393,59319.0,59318.0,1.631242]
[1724834210253,0.1393,59319.0,59318.0,1.531242]
[1724834210937,0.0004,59319.0,59318.0,1.536242]
[1724834211405,0.0004,59319.0,59318.0,2.30956777]
[1724834211406,1e-06,59319.0,59318.0,2.30956777]
[1724834211639,1e-06,59319.0,59318.0,2.64673277]
[1724834211874,1e-06,59319.0,59318.0,2.29556777]
[1724834212097,1e-06,59319.0,59318.0,2.32356777]
[1724834212307,1e-06,59319.0,59318.0,2.141107]
[1724834212537,1e-06,59319.0,59318.0,2.160947]
[1724834212774,1e-06,59319.0,59318.0,2.109147]
[1724834213505,1e-06,59319.0,59318.0,2.030247]
[1724834213747,1e-06,59319.0,59318.0,2.044247]
[1724834213982,0.140701,59319.0,59318.0,1.631242]
[1724834214232,0.140701,59319.0,59318.0,1.636242]
[1724834214476,0.13307002,59319.0,59318.0,1.973407]
[1724834214721,0.077,59319.0,59318.0,1.973407]
[1724834214972,0.11731261,59323.0,59322.0,1.517143]
[1724834215211,0.11731261,59323.0,59322.0,1.91395525]
[1724834216403,0.11731261,59323.0,59322.0,1.92795525]
[1724834216651,0.11731261,59323.0,59322.0,1.94195525]
[1724834220473,0.03461261,59323.0,59322.0,1.94195525]
[1724834220717,0.11151261,59323.0,59322.0,1.94195525]
[1724834220939,0.17161261,59323.0,59322.0,1.308]
[1724834221162,0.14518,59323.0,59322.0,1.308]
[1724834221866,0.14518,59323.0,59322.0,1.294]
[1724834222088,0.14518,59323.0,59322.0,1.28]
[1724834222312,0.14518,59323.0,59322.0,1.308]
[1724834222538,0.14518,59323.0,59322.0,1.94195525]
[1724834222767,0.00818,59323.0,59322.0,1.94195525]
[1724834222954,0.00818,59323.0,59322.0,1.94695525]
[1724834224656,0.00818,59323.0,59322.0,1.60481225]
[1724834224918,0.08908,59323.0,59322.0,1.308]
[1724834225188,0.08908,59323.0,59322.0,1.28]
[1724834225426,0.00818,59323.0,59322.0,1.617143]
[1724834225664,0.00818,59323.0,59322.0,1.645143]
[1724834226126,0.00818,59323.0,59322.0,1.617143]
[1724834226356,0.00818,59323.0,59322.0,1.645143]
[1724834226812,0.00818,59323.0,59322.0,1.650143]
[1724834227289,0.00818,59323.0,59322.0,1.987286]
[1724834227760,0.00818,59323.0,59322.0,1.650143]
[1724834228300,0.00818,59323.0,59322.0,1.636143]
[1724834228787,0.00818,59323.0,59322.0,1.959286]
[1724834229001,0.00818,59323.0,59322.0,1.987286]
[1724834229230,0.00818,59323.0,59322.0,1.973286]
[1724834229713,0.00818,59323.0,59322.0,1.636143]
[1724834229965,0.00818,59323.0,59322.0,1.650143]
[1724834230179,0.00818,59323.0,59322.0,1.622143]
[1724834231174,0.00818,59323.0,59322.0,1.91895525]
[1724834231668,0.00818,59323.0,59322.0,2.28409825]
[1724834231891,0.00818,59323.0,59322.0,2.27009825]
[1724834232359,0.00818,59323.0,59322.0,2.25609825]
[1724834232584,0.00818,59323.0,59322.0,2.27009825]
[1724834232818,0.00818,59323.0,59322.0,2.28409825]
[1724834233066,0.00818,59323.0,59322.0,2.27009825]
[1724834233498,0.00818,59323.0,59322.0,1.99146818]
[1724834233727,0.00818,59323.0,59322.0,1.99153061]
[1724834233971,0.00818,59323.0,59322.0,1.94195525]
[1724834234186,0.00818,59323.0,59322.0,1.99653061]
[1724834234437,0.00818,59323.0,59322.0,2.33367361]
[1724834234901,1e-06,59323.0,59322.0,2.74581661]
[1724834235155,0.00818,59324.0,59323.0,1.184979]
[1724834235156,1e-06,59324.0,59323.0,1.184979]
[1724834235402,1e-06,59324.0,59323.0,1.69473975]
[1724834235879,1e-06,59324.0,59323.0,2.00887675]
[1724834236370,1e-06,59324.0,59323.0,1.973253]
[1724834236598,1e-06,59324.0,59323.0,2.03687675]
[1724834236842,1e-06,59324.0,59323.0,2.05871805]
[1724834237280,1e-06,59324.0,59323.0,2.0090943]
[1724834238704,1e-06,59324.0,59323.0,2.0083943]
[1724834238928,1e-06,59324.0,59323.0,2.45682949]
[1724834239641,1e-06,59324.0,59323.0,2.38246644]
[1724834239859,1e-06,59324.0,59323.0,2.48161717]
[1724834240359,1e-06,59324.0,59323.0,2.0083943]
[1724834240581,1e-06,59324.0,59323.0,1.6662573]
[1724834240582,0.140801,59324.0,59323.0,1.6662573]
[1724834240848,0.140801,59324.0,59323.0,2.05303498]
[1724834241599,1e-06,59324.0,59323.0,2.4766245]
[1724834242336,1e-06,59324.0,59323.0,2.04033677]
[1724834242808,1e-06,59324.0,59323.0,1.35691545]
[1724834242809,0.143401,59324.0,59323.0,1.35691545]
[1724834243036,0.143401,59324.0,59323.0,1.307279]
[1724834247304,0.143401,59324.0,59323.0,1.293279]
[1724834248140,0.143401,59324.0,59323.0,1.307279]
[1724834253170,0.143401,59324.0,59323.0,0.633005]
[1724834253646,0.143401,59324.0,59323.0,0.028]
[1724834253647,0.17870226,59324.0,59323.0,0.028]
[1724834253859,1.02152926,59324.0,59323.0,0.028]
[1724834254075,1.02152926,59324.0,59319.0,0.0008987]
[1724834254076,0.985385,59320.0,59319.0,0.0008987]
[1724834254294,0.985385,59320.0,59316.0,0.0008987]
[1724834254295,0.505756,59317.0,59316.0,0.0008987]
[1724834254519,0.985427,59317.0,59316.0,0.0008987]
[1724834254729,0.648256,59317.0,59316.0,0.0008987]
[1724834254937,0.65712563,59317.0,59316.0,0.0008987]
[1724834255148,1.02073445,59317.0,59316.0,0.0008987]
[1724834255372,1.050983,59317.0,59316.0,0.0008987]
[1724834255800,1.02073445,59317.0,59316.0,0.0038987]
[1724834256220,0.20080745,59317.0,59299.0,0.50540786]
[1724834256475,0.063,59315.0,59299.0,0.50540786]
[1724834256703,0.337227,59308.0,59298.0,0.337277]
[1724834256929,0.168622,59305.0,59298.0,0.337277]
[1724834257151,0.168622,59305.0,59301.0,0.16863]
[1724834257372,0.337217,59309.0,59302.0,0.168628]
[1724834257373,0.15101214,59304.0,59302.0,0.168628]
[1724834257609,0.20387791,59304.0,59298.0,0.337277]
[1724834257818,0.03525491,59304.0,59300.0,0.1695307]
[1724834258029,0.03525491,59304.0,59301.0,0.16863]